[Event "*** Titled Tuesday Blitz"]
[Site "Chess.com"]
[Date "2021.03.30"]
[Round "5"]
[White "Tsyhanchuk_Stanislav"]
[Black "ChessWarrior3"]
[Result "1-0"]
[WhiteElo "2485"]
[BlackElo "2130"]
[TimeControl "180+1"]
[EndTime "10:55:04 PDT"]
[Termination "Tsyhanchuk_Stanislav won by checkmate"]

1. e4 {[%clk 0:03:00.9]} 1... c5 {[%clk 0:02:57.9]} 2. Nf3 {[%clk 0:03:00.1]}
2... d6 {[%clk 0:02:57.7]} 3. d4 {[%clk 0:03:00.6]} 3... cxd4 {[%clk 0:02:58.6]}
4. Nxd4 {[%clk 0:03:01.5]} 4... Nf6 {[%clk 0:02:58.3]} 5. Nc3 {[%clk 0:03:02.1]}
5... a6 {[%clk 0:02:58.9]} 6. Be3 {[%clk 0:03:02.6]} 6... e5 {[%clk 0:02:59.5]}
7. Nb3 {[%clk 0:03:03.1]} 7... Be6 {[%clk 0:02:59.4]} 8. Qd2 {[%clk 0:03:03.6]}
8... Ng4 {[%clk 0:02:50]} 9. O-O-O {[%clk 0:02:59.2]} 9... Be7 {[%clk
0:02:38.9]} 10. g3 {[%clk 0:02:56.5]} 10... O-O {[%clk 0:02:34.3]} 11. f4 {[%clk
0:02:45.8]} 11... Nxe3 {[%clk 0:02:32.1]} 12. Qxe3 {[%clk 0:02:44.5]} 12... exf4
{[%clk 0:02:26.9]} 13. gxf4 {[%clk 0:02:43.5]} 13... Qc7 {[%clk 0:02:19.9]} 14.
f5 {[%clk 0:02:36.7]} 14... h6 {[%clk 0:02:15.7]} 15. Kb1 {[%clk 0:02:35.5]}
15... Bc4 {[%clk 0:02:05.4]} 16. Bxc4 {[%clk 0:02:32.5]} 16... Qxc4 {[%clk
0:02:06.3]} 17. Nd5 {[%clk 0:02:32.8]} 17... Bg5 {[%clk 0:02:06.1]} 18. Qf3
{[%clk 0:02:18]} 18... Nd7 {[%clk 0:01:42.8]} 19. h4 {[%clk 0:02:16.1]} 19...
Ne5 {[%clk 0:01:39.6]} 20. Qg3 {[%clk 0:02:13.2]} 20... Bd8 {[%clk 0:01:00.1]}
21. Rhg1 {[%clk 0:02:06.6]} 21... g6 {[%clk 0:00:55.1]} 22. fxg6 {[%clk
0:02:04.4]} 22... fxg6 {[%clk 0:00:56]} 23. Nd4 {[%clk 0:01:51.6]} 23... Rc8
{[%clk 0:00:51.4]} 24. Ka1 {[%clk 0:01:37.4]} 24... Kh7 {[%clk 0:00:42]} 25. h5
{[%clk 0:01:27.6]} 25... g5 {[%clk 0:00:33.1]} 26. Nf5 {[%clk 0:01:10.5]} 26...
Rxf5 {[%clk 0:00:11.2]} 27. exf5 {[%clk 0:01:09.3]} 27... Qxc2 {[%clk
0:00:11.7]} 28. Qe3 {[%clk 0:00:47.1]} 28... Nc4 {[%clk 0:00:10.9]} 29. Qd4
{[%clk 0:00:45.1]} 29... Qe2 {[%clk 0:00:08]} 30. Rge1 {[%clk 0:00:41.1]} 30...
Qf3 {[%clk 0:00:07.3]} 31. Re8 {[%clk 0:00:33.8]} 31... Qxf5 {[%clk 0:00:04.4]}
32. Qh8# {[%clk 0:00:32.4]} 1-0

[Event "*** Titled Tuesday Blitz"]
[Site "Chess.com"]
[Date "2021.03.30"]
[Round "5"]
[White "aljado"]
[Black "Treacherous_horse64"]
[Result "0-1"]
[WhiteElo "2085"]
[BlackElo "2436"]
[TimeControl "180+1"]
[EndTime "10:55:04 PDT"]
[Termination "Treacherous_horse64 won on time"]

1. e4 {[%clk 0:03:00.9]} 1... c6 {[%clk 0:02:10.7]} 2. d4 {[%clk 0:02:58.8]}
2... d5 {[%clk 0:02:11.6]} 3. exd5 {[%clk 0:02:58.6]} 3... cxd5 {[%clk
0:02:12.5]} 4. c4 {[%clk 0:02:58.7]} 4... Nf6 {[%clk 0:02:10.6]} 5. Nc3 {[%clk
0:02:58.2]} 5... e6 {[%clk 0:02:11.1]} 6. Nf3 {[%clk 0:02:56.5]} 6... Be7 {[%clk
0:02:11.7]} 7. Bg5 {[%clk 0:02:52.9]} 7... O-O {[%clk 0:02:10.8]} 8. c5 {[%clk
0:02:46.8]} 8... b6 {[%clk 0:02:08.7]} 9. b4 {[%clk 0:02:41.5]} 9... a5 {[%clk
0:02:08.1]} 10. a3 {[%clk 0:02:37]} 10... axb4 {[%clk 0:02:07.8]} 11. axb4
{[%clk 0:02:35.9]} 11... Rxa1 {[%clk 0:02:08.7]} 12. Qxa1 {[%clk 0:02:35.1]}
12... bxc5 {[%clk 0:02:04.1]} 13. bxc5 {[%clk 0:02:32.7]} 13... Nc6 {[%clk
0:02:04.1]} 14. Bd3 {[%clk 0:02:27.4]} 14... Nd7 {[%clk 0:01:34.3]} 15. Bxe7
{[%clk 0:02:23.2]} 15... Qxe7 {[%clk 0:01:35]} 16. Qa4 {[%clk 0:01:56.9]} 16...
Bb7 {[%clk 0:01:32.8]} 17. O-O {[%clk 0:01:54.7]} 17... Ra8 {[%clk 0:01:28.4]}
18. Qb5 {[%clk 0:01:46.4]} 18... Nf6 {[%clk 0:01:24.8]} 19. Re1 {[%clk
0:01:42.6]} 19... Qc7 {[%clk 0:01:23.8]} 20. Qb1 {[%clk 0:01:33.2]} 20... h6
{[%clk 0:01:22.8]} 21. Ne2 {[%clk 0:01:24.2]} 21... Nd7 {[%clk 0:01:20.1]} 22.
Qb2 {[%clk 0:01:13.9]} 22... Ba6 {[%clk 0:01:10.8]} 23. Bxa6 {[%clk 0:01:09.6]}
23... Rxa6 {[%clk 0:01:11.7]} 24. Ng3 {[%clk 0:01:07]} 24... Ra4 {[%clk
0:01:07.8]} 25. h3 {[%clk 0:00:49]} 25... Nf6 {[%clk 0:01:04.4]} 26. Qb3 {[%clk
0:00:45]} 26... Qa5 {[%clk 0:01:01.4]} 27. Qe3 {[%clk 0:00:25.5]} 27... Qb4
{[%clk 0:00:57.5]} 28. Rd1 {[%clk 0:00:22.8]} 28... Qc4 {[%clk 0:00:55]} 29. Ne2
{[%clk 0:00:20.9]} 29... Ne4 {[%clk 0:00:54.8]} 30. Nd2 {[%clk 0:00:18.5]} 30...
Qc2 {[%clk 0:00:52.6]} 31. Rc1 {[%clk 0:00:14.8]} 31... Qxd2 {[%clk 0:00:52.4]}
32. Qxd2 {[%clk 0:00:12.5]} 32... Nxd2 {[%clk 0:00:53.2]} 33. Nc3 {[%clk
0:00:11.4]} 33... Rc4 {[%clk 0:00:51]} 34. Rc2 {[%clk 0:00:06.5]} 34... Nb3
{[%clk 0:00:50.6]} 0-1

[Event "*** Titled Tuesday Blitz"]
[Site "Chess.com"]
[Date "2021.03.30"]
[Round "5"]
[White "mac0504"]
[Black "Cryptochess"]
[Result "1-0"]
[WhiteElo "2451"]
[BlackElo "2572"]
[TimeControl "180+1"]
[EndTime "10:55:05 PDT"]
[Termination "mac0504 won by resignation"]

1. e4 {[%clk 0:03:00.9]} 1... e5 {[%clk 0:02:59.4]} 2. Nf3 {[%clk 0:02:53.9]}
2... Nf6 {[%clk 0:02:56.9]} 3. Nxe5 {[%clk 0:02:52.1]} 3... d6 {[%clk
0:02:56.8]} 4. Nf3 {[%clk 0:02:52.7]} 4... Nxe4 {[%clk 0:02:56.8]} 5. d4 {[%clk
0:02:53.3]} 5... d5 {[%clk 0:02:56.4]} 6. Bd3 {[%clk 0:02:54]} 6... Bd6 {[%clk
0:02:56.6]} 7. O-O {[%clk 0:02:53.9]} 7... O-O {[%clk 0:02:56.8]} 8. c4 {[%clk
0:02:54.5]} 8... c6 {[%clk 0:02:51.7]} 9. cxd5 {[%clk 0:02:55.4]} 9... cxd5
{[%clk 0:02:49.4]} 10. Nc3 {[%clk 0:02:56.3]} 10... Nxc3 {[%clk 0:02:47.9]} 11.
bxc3 {[%clk 0:02:57.2]} 11... Bg4 {[%clk 0:02:37.3]} 12. Rb1 {[%clk 0:02:57.2]}
12... Nd7 {[%clk 0:02:35.6]} 13. h3 {[%clk 0:02:53.1]} 13... Bh5 {[%clk
0:02:20.4]} 14. Rxb7 {[%clk 0:02:49.5]} 14... Nb6 {[%clk 0:02:19.7]} 15. Qc2
{[%clk 0:02:35.3]} 15... Bxf3 {[%clk 0:02:07.3]} 16. Bxh7+ {[%clk 0:02:33.6]}
16... Kh8 {[%clk 0:02:05.7]} 17. gxf3 {[%clk 0:02:34.5]} 17... Qc8 {[%clk
0:01:37.4]} 18. Qf5 {[%clk 0:02:21.9]} 18... g6 {[%clk 0:00:57.5]} 19. Qf6+
{[%clk 0:01:23.5]} 19... Kxh7 {[%clk 0:00:56.8]} 20. Rxf7+ {[%clk 0:01:24]}
20... Rxf7 {[%clk 0:00:57.4]} 21. Qxf7+ {[%clk 0:01:24.5]} 21... Kh8 {[%clk
0:00:58]} 22. Bg5 {[%clk 0:00:53.8]} 22... Nd7 {[%clk 0:00:57.1]} 23. Re1 {[%clk
0:00:53.5]} 23... Qxc3 {[%clk 0:00:42.3]} 24. Re6 {[%clk 0:00:27.3]} 24... Rf8
{[%clk 0:00:30.5]} 25. Qxg6 {[%clk 0:00:20]} 25... Qxd4 {[%clk 0:00:07.2]} 26.
Qh6+ {[%clk 0:00:18]} 26... Kg8 {[%clk 0:00:07.7]} 27. Rg6+ {[%clk 0:00:14]}
27... Kf7 {[%clk 0:00:08.1]} 28. Qh7+ {[%clk 0:00:14.2]} 28... Ke8 {[%clk
0:00:07.5]} 29. Re6+ {[%clk 0:00:14.7]} 1-0

[Event "*** Titled Tuesday Blitz"]
[Site "Chess.com"]
[Date "2021.03.30"]
[Round "5"]
[White "Bishops83"]
[Black "Trickov"]
[Result "0-1"]
[WhiteElo "2236"]
[BlackElo "2415"]
[TimeControl "180+1"]
[EndTime "10:55:05 PDT"]
[Termination "Trickov won on time"]

1. e4 {[%clk 0:03:00.9]} 1... c5 {[%clk 0:02:56.6]} 2. Nf3 {[%clk 0:03:00.1]}
2... d6 {[%clk 0:02:56.2]} 3. d4 {[%clk 0:03:00]} 3... Nf6 {[%clk 0:02:55.4]} 4.
Nc3 {[%clk 0:02:58.1]} 4... cxd4 {[%clk 0:02:52.7]} 5. Nxd4 {[%clk 0:02:59]}
5... a6 {[%clk 0:02:49.2]} 6. f3 {[%clk 0:02:57.1]} 6... e5 {[%clk 0:02:48.9]}
7. Nb3 {[%clk 0:02:55.2]} 7... Be6 {[%clk 0:02:48.9]} 8. Be3 {[%clk 0:02:47.2]}
8... Nbd7 {[%clk 0:02:48.4]} 9. g4 {[%clk 0:02:45.7]} 9... Nb6 {[%clk
0:02:47.6]} 10. g5 {[%clk 0:02:35]} 10... Nfd7 {[%clk 0:02:46.7]} 11. Qd2 {[%clk
0:02:03.4]} 11... Rc8 {[%clk 0:02:44.9]} 12. h4 {[%clk 0:02:00.2]} 12... Nc4
{[%clk 0:02:36.6]} 13. Bxc4 {[%clk 0:01:58]} 13... Rxc4 {[%clk 0:02:36.5]} 14.
O-O-O {[%clk 0:01:54.6]} 14... b5 {[%clk 0:02:33.4]} 15. Kb1 {[%clk 0:01:51.8]}
15... Be7 {[%clk 0:02:31.7]} 16. Nd5 {[%clk 0:01:43.1]} 16... Bxd5 {[%clk
0:01:57]} 17. Qxd5 {[%clk 0:01:44]} 17... Rc8 {[%clk 0:01:56.7]} 18. h5 {[%clk
0:01:26.5]} 18... Qc7 {[%clk 0:01:42.3]} 19. g6 {[%clk 0:01:08.8]} 19... Qc4
{[%clk 0:01:32.2]} 20. Qd2 {[%clk 0:00:44]} 20... Nf6 {[%clk 0:01:23.2]} 21. Bg5
{[%clk 0:00:37.8]} 21... hxg6 {[%clk 0:01:06.5]} 22. hxg6 {[%clk 0:00:36.2]}
22... Rxh1 {[%clk 0:01:05.2]} 23. Rxh1 {[%clk 0:00:37.1]} 23... fxg6 {[%clk
0:01:05.2]} 24. Bxf6 {[%clk 0:00:35.7]} 24... gxf6 {[%clk 0:00:52.4]} 25. Na5
{[%clk 0:00:13]} 25... Qe6 {[%clk 0:00:40.6]} 26. Rh7 {[%clk 0:00:10.2]} 26...
Qg8 {[%clk 0:00:34.9]} 27. Qh2 {[%clk 0:00:07.9]} 27... Kd7 {[%clk 0:00:25.2]}
28. Qh3+ {[%clk 0:00:05.5]} 28... Qe6 {[%clk 0:00:25.2]} 29. Qh6 {[%clk
0:00:01.8]} 29... g5 {[%clk 0:00:23.8]} 0-1

[Event "*** Titled Tuesday Blitz"]
[Site "Chess.com"]
[Date "2021.03.30"]
[Round "5"]
[White "DanielTitichoca"]
[Black "SaqoChess_Twitch"]
[Result "1-0"]
[WhiteElo "2291"]
[BlackElo "2473"]
[TimeControl "180+1"]
[EndTime "10:55:08 PDT"]
[Termination "DanielTitichoca won by checkmate"]

1. c4 {[%clk 0:03:00.9]} 1... e5 {[%clk 0:02:56.6]} 2. g3 {[%clk 0:03:01.1]}
2... d6 {[%clk 0:02:57.5]} 3. Bg2 {[%clk 0:03:00.2]} 3... Nc6 {[%clk 0:02:58.4]}
4. Nc3 {[%clk 0:03:00.1]} 4... Be6 {[%clk 0:02:57.8]} 5. b3 {[%clk 0:02:56.5]}
5... g6 {[%clk 0:02:40.8]} 6. e3 {[%clk 0:02:54.6]} 6... Bg7 {[%clk 0:02:41.2]}
7. Nge2 {[%clk 0:02:54.9]} 7... Nge7 {[%clk 0:02:40.4]} 8. O-O {[%clk
0:02:53.1]} 8... O-O {[%clk 0:02:38.1]} 9. d4 {[%clk 0:02:52.5]} 9... exd4
{[%clk 0:02:37.2]} 10. Nxd4 {[%clk 0:02:26.1]} 10... Nxd4 {[%clk 0:02:31.8]} 11.
exd4 {[%clk 0:02:27]} 11... c6 {[%clk 0:02:30.4]} 12. Bb2 {[%clk 0:02:14]} 12...
d5 {[%clk 0:02:29.5]} 13. c5 {[%clk 0:02:04.7]} 13... Nf5 {[%clk 0:02:25.2]} 14.
Ne2 {[%clk 0:01:57.5]} 14... h5 {[%clk 0:02:21]} 15. Nf4 {[%clk 0:01:55.7]}
15... Bd7 {[%clk 0:02:15]} 16. Qd3 {[%clk 0:01:48.4]} 16... Nh6 {[%clk
0:02:01.2]} 17. Rfe1 {[%clk 0:01:39.9]} 17... Bf5 {[%clk 0:02:01.1]} 18. Qd2
{[%clk 0:01:38.7]} 18... Qd7 {[%clk 0:02:01.7]} 19. Nd3 {[%clk 0:01:15.9]} 19...
Bh3 {[%clk 0:01:56.9]} 20. Ne5 {[%clk 0:01:03.5]} 20... Bxe5 {[%clk 0:01:55.2]}
21. dxe5 {[%clk 0:01:01.5]} 21... Bxg2 {[%clk 0:01:53]} 22. Qxh6 {[%clk
0:00:28]} 22... Be4 {[%clk 0:01:12.5]} 23. Rxe4 {[%clk 0:00:20.4]} 23... Qe6
{[%clk 0:00:49.3]} 24. Rf4 {[%clk 0:00:19.2]} 24... d4 {[%clk 0:00:49.2]} 25.
Bxd4 {[%clk 0:00:18.1]} 25... Rad8 {[%clk 0:00:49.5]} 26. Bc3 {[%clk 0:00:16.9]}
26... Rd3 {[%clk 0:00:49]} 27. Rf6 {[%clk 0:00:16.4]} 27... Qd5 {[%clk
0:00:46.2]} 28. Rc1 {[%clk 0:00:13.4]} 28... Rd1+ {[%clk 0:00:44.4]} 29. Rxd1
{[%clk 0:00:11.9]} 29... Qxd1+ {[%clk 0:00:45.3]} 30. Kg2 {[%clk 0:00:12.4]}
30... Qd5+ {[%clk 0:00:46.2]} 31. Kh3 {[%clk 0:00:12.7]} 31... Re8 {[%clk
0:00:41.5]} 32. e6 {[%clk 0:00:12.8]} 32... Rxe6 {[%clk 0:00:31.4]} 33. Rxg6+
{[%clk 0:00:12.9]} 33... fxg6 {[%clk 0:00:31.1]} 34. Qg7# {[%clk 0:00:12.2]} 1-0

[Event "*** Titled Tuesday Blitz"]
[Site "Chess.com"]
[Date "2021.03.30"]
[Round "5"]
[White "HouseOfDurin"]
[Black "jraosam"]
[Result "0-1"]
[WhiteElo "2135"]
[BlackElo "1850"]
[TimeControl "180+1"]
[EndTime "10:55:10 PDT"]
[Termination "jraosam won by checkmate"]

1. d4 {[%clk 0:03:00.1]} 1... d5 {[%clk 0:02:59.9]} 2. Bg5 {[%clk 0:02:59.9]}
2... Nf6 {[%clk 0:02:59.2]} 3. Bxf6 {[%clk 0:02:59.4]} 3... exf6 {[%clk
0:02:59.1]} 4. e3 {[%clk 0:03:00.3]} 4... c6 {[%clk 0:02:59]} 5. c4 {[%clk
0:03:00.8]} 5... Bb4+ {[%clk 0:02:58.7]} 6. Nc3 {[%clk 0:02:59.3]} 6... O-O
{[%clk 0:02:59]} 7. cxd5 {[%clk 0:02:57.5]} 7... cxd5 {[%clk 0:02:57.5]} 8. Ne2
{[%clk 0:02:56.9]} 8... Nc6 {[%clk 0:02:57.3]} 9. a3 {[%clk 0:02:56.6]} 9... Ba5
{[%clk 0:02:56.4]} 10. b4 {[%clk 0:02:55.6]} 10... Bc7 {[%clk 0:02:56.4]} 11. g3
{[%clk 0:02:51.7]} 11... Bg4 {[%clk 0:02:43.2]} 12. Bg2 {[%clk 0:02:51.5]} 12...
Ne7 {[%clk 0:02:42.8]} 13. O-O {[%clk 0:02:49.1]} 13... Qd7 {[%clk 0:02:40.6]}
14. Qb3 {[%clk 0:02:47.6]} 14... Rfd8 {[%clk 0:02:35.8]} 15. Rfe1 {[%clk
0:02:41.6]} 15... Be6 {[%clk 0:02:31.9]} 16. Rac1 {[%clk 0:02:37.4]} 16... a6
{[%clk 0:02:29.5]} 17. b5 {[%clk 0:02:25.5]} 17... a5 {[%clk 0:02:23.9]} 18. b6
{[%clk 0:02:22.1]} 18... Bb8 {[%clk 0:02:23.6]} 19. a4 {[%clk 0:02:17.3]} 19...
Nc6 {[%clk 0:02:23]} 20. Nb5 {[%clk 0:02:03.6]} 20... Ra6 {[%clk 0:02:21.2]} 21.
Na3 {[%clk 0:01:50.5]} 21... Nb4 {[%clk 0:02:19.7]} 22. Rc5 {[%clk 0:01:45.8]}
22... Bd6 {[%clk 0:02:05.1]} 23. Rb5 {[%clk 0:01:42.3]} 23... Qe7 {[%clk
0:02:04.8]} 24. Bxd5 {[%clk 0:01:35.9]} 24... Nxd5 {[%clk 0:02:00.1]} 25. Qb2
{[%clk 0:01:23.1]} 25... Bxa3 {[%clk 0:01:57.5]} 26. Qb1 {[%clk 0:01:21.3]}
26... Nb4 {[%clk 0:01:53.5]} 27. e4 {[%clk 0:01:18.2]} 27... Ba2 {[%clk
0:01:52.2]} 28. Qd1 {[%clk 0:01:17.1]} 28... h6 {[%clk 0:01:43.3]} 29. d5 {[%clk
0:01:11.8]} 29... Qxe4 {[%clk 0:01:41]} 30. Nc3 {[%clk 0:01:09.9]} 30... Qc2
{[%clk 0:01:40.5]} 31. Qxc2 {[%clk 0:00:57.2]} 31... Nxc2 {[%clk 0:01:41.4]} 32.
Re7 {[%clk 0:00:57.3]} 32... Bxe7 {[%clk 0:01:26.2]} 33. Rb2 {[%clk 0:00:52.6]}
33... Bxd5 {[%clk 0:01:25.2]} 34. Rxc2 {[%clk 0:00:44.1]} 34... Rxb6 {[%clk
0:01:23.7]} 35. Nxd5 {[%clk 0:00:23.4]} 35... Rxd5 {[%clk 0:01:24.6]} 36. h4
{[%clk 0:00:19.5]} 36... Kh7 {[%clk 0:01:25.5]} 37. Kg2 {[%clk 0:00:18.3]} 37...
Re6 {[%clk 0:01:26.4]} 38. Rb2 {[%clk 0:00:16.1]} 38... Bb4 {[%clk 0:01:26]} 39.
Rc2 {[%clk 0:00:15.7]} 39... Red6 {[%clk 0:01:26.9]} 40. Rc7 {[%clk 0:00:15.3]}
40... Rd2 {[%clk 0:01:27.8]} 41. h5 {[%clk 0:00:14.7]} 41... Rd7 {[%clk
0:01:26.8]} 42. Rc8 {[%clk 0:00:14.6]} 42... Re7 {[%clk 0:01:26.9]} 43. Rc4
{[%clk 0:00:13.4]} 43... Ree2 {[%clk 0:01:27.8]} 44. Rf4 {[%clk 0:00:13.4]}
44... Bc5 {[%clk 0:01:27.9]} 45. Kh3 {[%clk 0:00:12.7]} 45... Rxf2 {[%clk
0:01:28.1]} 46. Re4 {[%clk 0:00:10.8]} 46... Rh2+ {[%clk 0:01:28.1]} 47. Kg4
{[%clk 0:00:10.9]} 47... Bd6 {[%clk 0:01:27.2]} 48. Re8 {[%clk 0:00:09.3]} 48...
Be5 {[%clk 0:01:28.1]} 49. Kf5 {[%clk 0:00:07]} 49... Rhf2+ {[%clk 0:01:27.5]}
50. Kg4 {[%clk 0:00:07.5]} 50... Rd4+ {[%clk 0:01:27.9]} 51. Kh3 {[%clk
0:00:07.3]} 51... Rf3 {[%clk 0:01:28.6]} 52. Kh2 {[%clk 0:00:06.2]} 52... Rxg3
{[%clk 0:01:29.5]} 53. Kh1 {[%clk 0:00:06.1]} 53... Rd1+ {[%clk 0:01:29.2]} 54.
Kh2 {[%clk 0:00:05.9]} 54... Rg5+ {[%clk 0:01:30.1]} 55. Kh3 {[%clk 0:00:05.5]}
55... Rh1# {[%clk 0:01:31]} 0-1

[Event "*** Titled Tuesday Blitz"]
[Site "Chess.com"]
[Date "2021.03.30"]
[Round "5"]
[White "Vincent_Vega95"]
[Black "Grieve72"]
[Result "1-0"]
[WhiteElo "2727"]
[BlackElo "2474"]
[TimeControl "180+1"]
[EndTime "10:55:12 PDT"]
[Termination "Vincent_Vega95 won on time"]

1. d4 {[%clk 0:03:00.9]} 1... d5 {[%clk 0:02:00.9]} 2. c4 {[%clk 0:02:57.6]}
2... e6 {[%clk 0:02:00.8]} 3. Nc3 {[%clk 0:02:57.5]} 3... c6 {[%clk 0:02:01.1]}
4. Qb3 {[%clk 0:02:51.9]} 4... Nf6 {[%clk 0:01:47.1]} 5. Bg5 {[%clk 0:02:50.1]}
5... Nbd7 {[%clk 0:01:45.3]} 6. e3 {[%clk 0:02:50.2]} 6... Bd6 {[%clk
0:01:41.5]} 7. Nf3 {[%clk 0:02:49]} 7... O-O {[%clk 0:01:40.8]} 8. Rd1 {[%clk
0:02:49.4]} 8... h6 {[%clk 0:01:38.4]} 9. Bh4 {[%clk 0:02:49.2]} 9... b6 {[%clk
0:01:35]} 10. Be2 {[%clk 0:02:48]} 10... Bb7 {[%clk 0:01:35]} 11. O-O {[%clk
0:02:47.7]} 11... Qb8 {[%clk 0:01:17.5]} 12. cxd5 {[%clk 0:02:43.8]} 12... exd5
{[%clk 0:01:14.7]} 13. Bd3 {[%clk 0:02:43.2]} 13... Re8 {[%clk 0:01:14.2]} 14.
Qc2 {[%clk 0:02:42.7]} 14... a6 {[%clk 0:00:56.9]} 15. Rfe1 {[%clk 0:02:42.1]}
15... c5 {[%clk 0:00:56.7]} 16. dxc5 {[%clk 0:02:34.8]} 16... bxc5 {[%clk
0:00:57.6]} 17. Bf5 {[%clk 0:02:26.6]} 17... d4 {[%clk 0:00:44.7]} 18. exd4
{[%clk 0:02:22.7]} 18... Rxe1+ {[%clk 0:00:43.6]} 19. Nxe1 {[%clk 0:02:14.4]}
19... cxd4 {[%clk 0:00:23.7]} 20. Rxd4 {[%clk 0:02:12]} 20... Bxh2+ {[%clk
0:00:23.5]} 21. Kh1 {[%clk 0:02:09.3]} 21... Be5 {[%clk 0:00:23.3]} 22. Rxd7
{[%clk 0:01:51.5]} 22... Nxd7 {[%clk 0:00:22.4]} 23. Bxd7 {[%clk 0:01:52.4]}
23... Bd4 {[%clk 0:00:15.8]} 24. Qf5 {[%clk 0:01:36.2]} 24... Qd6 {[%clk
0:00:11.7]} 25. Bg3 {[%clk 0:01:34.7]} 25... Qe7 {[%clk 0:00:11.2]} 26. Nf3
{[%clk 0:01:28.8]} 26... Bxf3 {[%clk 0:00:11]} 27. Qxf3 {[%clk 0:01:27.3]} 27...
Rd8 {[%clk 0:00:06]} 28. Bf5 {[%clk 0:01:21.6]} 28... g6 {[%clk 0:00:04.5]} 29.
Be4 {[%clk 0:01:13.1]} 29... Qb4 {[%clk 0:00:04.6]} 30. Bd5 {[%clk 0:01:09.2]}
30... Rd7 {[%clk 0:00:04.9]} 31. Bb3 {[%clk 0:01:06.1]} 31... a5 {[%clk
0:00:04.3]} 32. Nd5 {[%clk 0:01:04.2]} 32... Qc5 {[%clk 0:00:04]} 33. Nf6+
{[%clk 0:00:46.3]} 33... Bxf6 {[%clk 0:00:04.1]} 34. Qxf6 {[%clk 0:00:47.2]}
34... Qh5+ {[%clk 0:00:02.5]} 35. Kg1 {[%clk 0:00:41.3]} 35... g5 {[%clk
0:00:02.5]} 36. Be5 {[%clk 0:00:38.3]} 1-0

[Event "*** Titled Tuesday Blitz"]
[Site "Chess.com"]
[Date "2021.03.30"]
[Round "5"]
[White "Fortitudine"]
[Black "Stormeman100100"]
[Result "0-1"]
[WhiteElo "2263"]
[BlackElo "2505"]
[TimeControl "180+1"]
[EndTime "10:55:12 PDT"]
[Termination "Stormeman100100 won by resignation"]

1. c4 {[%clk 0:03:00.9]} 1... e6 {[%clk 0:02:59]} 2. Nf3 {[%clk 0:02:59.4]} 2...
d5 {[%clk 0:02:59.9]} 3. b3 {[%clk 0:02:57]} 3... Nf6 {[%clk 0:02:51.6]} 4. g3
{[%clk 0:02:48.2]} 4... c5 {[%clk 0:02:51.3]} 5. Bg2 {[%clk 0:02:40.7]} 5... d4
{[%clk 0:02:51.1]} 6. e3 {[%clk 0:02:37]} 6... Nc6 {[%clk 0:02:51]} 7. exd4
{[%clk 0:02:36.7]} 7... cxd4 {[%clk 0:02:51.9]} 8. O-O {[%clk 0:02:35.6]} 8...
Be7 {[%clk 0:02:51.2]} 9. Re1 {[%clk 0:02:35.5]} 9... O-O {[%clk 0:02:50.2]} 10.
Ne5 {[%clk 0:02:33.5]} 10... Nxe5 {[%clk 0:02:48.8]} 11. Rxe5 {[%clk 0:02:34.4]}
11... Nd7 {[%clk 0:02:49.6]} 12. Re1 {[%clk 0:02:33.3]} 12... e5 {[%clk
0:02:49.9]} 13. d3 {[%clk 0:02:23.9]} 13... Bd6 {[%clk 0:02:47.8]} 14. Ba3
{[%clk 0:02:05.8]} 14... Qe7 {[%clk 0:02:44.3]} 15. Bxd6 {[%clk 0:02:04.3]}
15... Qxd6 {[%clk 0:02:45.2]} 16. Nd2 {[%clk 0:01:33.8]} 16... Nc5 {[%clk
0:02:39.4]} 17. Ne4 {[%clk 0:01:28.8]} 17... Nxe4 {[%clk 0:02:39.3]} 18. Bxe4
{[%clk 0:01:29.5]} 18... f5 {[%clk 0:02:39.4]} 19. Bd5+ {[%clk 0:01:29.7]} 19...
Kh8 {[%clk 0:02:38.2]} 20. Qe2 {[%clk 0:01:15.5]} 20... Re8 {[%clk 0:02:37.2]}
21. Rac1 {[%clk 0:00:54.8]} 21... Rb8 {[%clk 0:02:34.8]} 22. Bg2 {[%clk
0:00:36.9]} 22... b6 {[%clk 0:02:33.9]} 23. Qh5 {[%clk 0:00:33.2]} 23... Bd7
{[%clk 0:02:33]} 24. Re2 {[%clk 0:00:30.3]} 24... Re7 {[%clk 0:02:30.8]} 25.
Rce1 {[%clk 0:00:29.8]} 25... Rbe8 {[%clk 0:02:30.9]} 26. f4 {[%clk 0:00:22.2]}
26... e4 {[%clk 0:02:26.9]} 27. dxe4 {[%clk 0:00:20.7]} 27... d3 {[%clk
0:02:24.2]} 28. Rd2 {[%clk 0:00:14.8]} 28... fxe4 {[%clk 0:02:22.2]} 29. Qd5
{[%clk 0:00:14]} 29... Qc5+ {[%clk 0:01:41.8]} 30. Qxc5 {[%clk 0:00:13.2]} 30...
bxc5 {[%clk 0:01:42.7]} 31. Kf2 {[%clk 0:00:13.8]} 31... Bc6 {[%clk 0:01:41.9]}
32. Ke3 {[%clk 0:00:13.9]} 32... Kg8 {[%clk 0:01:42.3]} 33. Rb1 {[%clk 0:00:12]}
33... Kf7 {[%clk 0:01:40.2]} 34. b4 {[%clk 0:00:12.3]} 34... cxb4 {[%clk
0:01:40.3]} 35. Rxb4 {[%clk 0:00:13.2]} 35... Rb7 {[%clk 0:01:33.5]} 36. a3
{[%clk 0:00:12.3]} 36... Reb8 {[%clk 0:01:32.3]} 37. Rxb7+ {[%clk 0:00:12.3]}
37... Rxb7 {[%clk 0:01:33.2]} 38. Kd4 {[%clk 0:00:10]} 38... Rb3 {[%clk
0:01:32.9]} 39. Bxe4 {[%clk 0:00:09.5]} 39... Bxe4 {[%clk 0:01:33]} 40. Kxe4
{[%clk 0:00:10.4]} 40... Rxa3 {[%clk 0:01:33.9]} 41. c5 {[%clk 0:00:09.9]} 41...
Rc3 {[%clk 0:01:33.9]} 42. Kd4 {[%clk 0:00:09.5]} 42... Rc2 {[%clk 0:01:27]} 43.
Rxd3 {[%clk 0:00:09.1]} 43... Rxh2 {[%clk 0:01:27.2]} 44. Kd5 {[%clk 0:00:08.4]}
44... Ke7 {[%clk 0:01:24.2]} 45. Kc6 {[%clk 0:00:08.5]} 45... Rb2 {[%clk
0:01:23]} 46. Kc7 {[%clk 0:00:08.2]} 46... a5 {[%clk 0:01:23.2]} 47. c6 {[%clk
0:00:08.6]} 47... a4 {[%clk 0:01:23.1]} 48. Ra3 {[%clk 0:00:09.1]} 48... Rb4
{[%clk 0:01:22.9]} 49. Re3+ {[%clk 0:00:09.7]} 49... Kf6 {[%clk 0:01:22.1]} 50.
Kd6 {[%clk 0:00:09.6]} 50... Rb3 {[%clk 0:01:20.1]} 51. c7 {[%clk 0:00:09.7]}
51... Rxe3 {[%clk 0:01:17.8]} 52. c8=Q {[%clk 0:00:10.1]} 52... Rd3+ {[%clk
0:01:17.9]} 0-1